Workbook

Sheet СВОД за 2013 год
A1: Реализация региональных программ Ненецкого автономного округа
A2: за 2013 год
B4: Целевая статья | C4: Глава | D4: Раздел | E4: Подраздел | F4: Вид расходов | G4: План на год | L4: Исполнено | Q4: Освоено | V4: % финанс-я ОБ | W4: % освоения Всего
I5: в том числе: | N5: в том числе: | S5: в том числе:
G6: Всего на год | H6: Средства ФБ | I6: Бюджет субъекта РФ | J6: Бюджет МО | K6: ВБИ | L6: Всего | M6: Средства ФБ | N6: Бюджет субъекта РФ | O6: Бюджет МО | P6: ВБИ | Q6: Всего | R6: Средства ФБ | S6: Бюджет субъекта РФ | T6: Бюджет МО | U6: ВБИ
A7: Всего расходов по региональным программам за счёт средств 2013 года | G7: =H7+I7+J7+K7 -> 264048.3 | H7: =H8+H20+H26+H35 -> 20167.1 | I7: =I8+I20+I26+I35 -> 211638 | J7: =J8+J20+J26+J35 -> 254.6 | K7: 31988.6 | L7: 208426.9 | M7: 19583.2 | N7: 181132.4 | O7: 223.3 | P7: 7488 | Q7: 103855.6 | R7: 18561.8 | S7: 78085.9 | T7: 223.3 | U7: 6984.6 | V7: =N7/I7*100 -> 85.58595337 | W7: =S7/N7*100 -> 43.10984672
A8: Экономически значимая региональная программа развития традиционной для Ненецкого автономного округа подотрасли сельского хозяйства "Развитие северного оленеводства в Ненецком автономном округе на 2013-2017 годы" | B8: 522 10 00 | G8: =H8+I8+J8+K8 -> 180459.7 | I8: =I9+I14 -> 155967 | J8: =SUM(J9) -> 0 | K8: =SUM(K9)+K14 -> 24492.7 | L8: =M8+N8+O8+P8 -> 128526.5 | N8: =N9+N14 -> 128260.3 | O8: =SUM(O9) -> 0 | P8: =SUM(P9)+P14 -> 266.2 | Q8: =R8+S8+T8+U8 -> 27289.7 | S8: =S9+S14 -> 27023.5 | T8: =SUM(T9) -> 0 | U8: =SUM(U9)+U14 -> 266.2 | V8: 82.235537 | W8: 21.06926305
A9: Управление государственного имущества Ненецкого автономного округа | B9: 522 10 00 | C9: 005 | G9: =H9+I9+J9+K9 -> 132917 | I9: =I10 -> 108886.8 | J9: =J10 -> 0 | K9: =K10 -> 24030.2 | L9: =M9+N9+O9+P9 -> 101236.8 | N9: =N10 -> 101236.8 | O9: 0 | P9: 0 | Q9: =R9+S9+T9+U9 -> 0 | S9: =S10 -> 0 | T9: =T10 -> 0 | U9: 0 | V9: 92.97435502 | W9: 0
A10: Национальная экономика | B10: 522 10 00 | C10: 005 | D10: 04 | G10: =G11 -> 132917 | I10: =I11 -> 108886.8 | J10: 0 | K10: 24030.2 | L10: =L11 -> 101236.8 | N10: 101236.8 | O10: 0 | P10: 0 | Q10: =R10+S10+T10+U10 -> 0 | S10: =S11 -> 0 | T10: 0 | V10: 92.97435502 | W10: 0
A11: Другие вопросы в области национальной экономики | B11: 522 10 00 | C11: 005 | D11: 04 | E11: 12 | G11: =G12+G13 -> 132917 | I11: =I12+I13 -> 108886.8 | J11: 0 | K11: =K12+K13 -> 24030.2 | L11: =L12+L13 -> 101236.8 | N11: 101236.8 | O11: 0 | P11: 0 | Q11: 0 | S11: 0 | T11: 0 | V11: 92.97435502 | W11: 0
A12: Бюджетные инвестиции | B12: 522 10 00 | C12: 005 | D12: 04 | E12: 12 | F12: 003 | G12: =H12+I12+J12+K12 -> 125267 | I12: ='522 10 00'!H13 -> 101236.8 | J12: 0 | K12: ='522 10 00'!J13 -> 24030.2 | L12: =M12+N12+O12+P12 -> 101236.8 | N12: ='522 10 00'!M13 -> 101236.8 | O12: =O13 -> 0 | P12: 0 | Q12: 0 | S12: 0 | T12: 0 | V12: 100 | W12: 0
A13: Бюджетные инвестиции иным юридическим лицам | B13: 522 10 00 | C13: 005 | D13: 04 | E13: 12 | F13: 456 | G13: =H13+I13+J13 -> 7650 | I13: ='522 10 00'!H15 -> 7650 | J13: 0 | L13: =M13+N13+O13 -> 0 | N13: ='522 10 00'!M15 -> 0 | O13: 0 | Q13: 0 | S13: 0 | T13: 0 | V13: 0 | W13: 0
A14: Управление агропромышленного комплекса и торговли Ненецкого автономного округа | B14: 522 10 00 | C14: 024 | G14: =H14+I14+J14+K14 -> 47542.7 | I14: =I15+I18 -> 47080.2 | J14: =J15+J18 -> 0 | K14: =K15 -> 462.5 | L14: =M14+N14+O14+P14 -> 27289.7 | N14: =N15+N18 -> 27023.5 | O14: =O15+O18 -> 0 | P14: =P15 -> 266.2 | Q14: 27289.7 | S14: =S15+S18 -> 27023.5 | T14: =T15+T18 -> 0 | U14: =U15 -> 266.2 | V14: 57.39886407 | W14: =S14/N14*100 -> 100
A15: Национальная экономика | B15: 522 10 00 | C15: 024 | D15: 04 | G15: =G16 -> 46253.1 | I15: =I16 -> 45790.6 | J15: =J16 -> 0 | K15: =K16 -> 462.5 | L15: =M15+N15+O15+P15 -> 26620.7 | N15: =N16 -> 26354.5 | O15: =O16 -> 0 | P15: =P16 -> 266.2 | Q15: 26620.7 | S15: =S16 -> 26354.5 | T15: =T16 -> 0 | U15: =U16 -> 266.2
A16: Сельское хозяйство и рыболовство | B16: 522 10 00 | C16: 024 | D16: 04 | E16: 05 | G16: =G17 -> 46253.1 | I16: =I17 -> 45790.6 | J16: 0 | K16: =K17 -> 462.5 | L16: =M16+N16+O16+P16 -> 26620.7 | N16: 26354.5 | O16: 0 | P16: =P17 -> 266.2 | Q16: 26620.7 | S16: 26354.5 | T16: 0 | U16: =U17 -> 266.2
A17: Субсидии юридическим лицам | B17: 522 10 00 | C17: 024 | D17: 04 | E17: 05 | F17: 006 | G17: =H17+I17+J17+K17 -> 46253.1 | I17: ='522 10 00'!H21 -> 45790.6 | J17: 0 | K17: ='522 10 00'!J21 -> 462.5 | L17: =M17+N17+O17+P17 -> 26620.7 | N17: ='522 10 00'!M21 -> 26354.5 | O17: 0 | P17: ='522 10 00'!O19 -> 266.2 | Q17: 26620.7 | S17: =N17 -> 26354.5 | T17: 0 | U17: =P17 -> 266.2 | V17: =N17/I17*100 -> 57.55438889 | W17: =S17/N17*100 -> 100
A18: Другие вопросы в области национальной экономики | B18: 522 10 00 | C18: 024 | D18: 04 | E18: 12 | G18: =G19 -> 1289.6 | I18: =I19 -> 1289.6 | J18: =J19 -> 0 | L18: =L19 -> 669 | N18: =N19 -> 669 | O18: =O19 -> 0 | Q18: 669 | S18: =S19 -> 669 | T18: =T19 -> 0
A19: Прочие расходы | B19: 522 10 00 | C19: 024 | D19: 04 | E19: 12 | F19: 013 | G19: =H19+I19+J19+K19 -> 1289.6 | I19: ='522 10 00'!H27 -> 1289.6 | J19: 0 | L19: =M19+N19+O19+P19 -> 669 | N19: ='522 10 00'!M27 -> 669 | O19: 0 | Q19: =R19+S19+T19+U19 -> 669 | S19: =L19 -> 669 | T19: 0 | V19: =N19/I19*100 -> 51.87655087 | W19: =S19/N19*100 -> 100
A20: Окружная программа «Развитие торговли на территории Ненецкого автономного округа на 2013 - 2017 годы» | B20: 522 56 00 | G20: =G21 -> 24235.8 | H20: 0 | I20: 23981.2 | J20: 254.6 | K20: 0 | L20: 22396.4 | M20: 0 | N20: 22173.1 | O20: 223.3 | P20: 0 | Q20: 22396.4 | R20: 0 | S20: 22173.1 | T20: 223.3 | U20: 0 | V20: =N20/I20*100 -> 92.46034394 | W20: =S20/N20*100 -> 100
A21: Управление агропромышленного комплекса и торговли Ненецкого автономного округа | B21: 522 11 00 | C21: 024 | G21: 24235.8 | H21: 0 | I21: 23981.2 | J21: 254.6 | K21: 0 | L21: 22396.4 | M21: 0 | N21: 22173.1 | O21: 223.3 | P21: 0 | Q21: 22396.4 | R21: 0 | S21: 22173.1 | T21: 223.3 | U21: 0 | V21: 92.46034394 | W21: 100
A22: Национальная экономика | B22: 522 11 00 | C22: 024 | D22: 04 | G22: 24235.8 | H22: 0 | I22: 23981.2 | J22: 254.6 | K22: 0 | L22: 22396.4 | M22: 0 | N22: 22173.1 | O22: 223.3 | P22: 0 | Q22: 22396.4 | R22: 0 | S22: 22173.1 | T22: 223.3 | U22: 0
A23: Другие вопросы в области национальной экономики | B23: 522 11 00 | C23: 024 | D23: 04 | E23: 12 | G23: =H23+I23+J23+K23 -> 24235.8 | H23: 0 | I23: =I24+I25 -> 23981.2 | J23: 254.6 | K23: 0 | L23: =M23+N23+O23+P23 -> 22396.4 | M23: 0 | N23: =N24+N25 -> 22173.1 | O23: 223.3 | P23: 0 | Q23: =R23+S23+T23+U23 -> 22396.4 | R23: 0 | S23: =S24+S25 -> 22173.1 | T23: 223.3 | U23: 0
A24: Фонд софинансирования | B24: 522 11 00 | C24: 024 | D24: 04 | E24: 12 | F24: 010 | G24: =H24+I24+J24+K24 -> 24060.8 | H24: 0 | I24: ='522 11 00'!H14 -> 23806.2 | J24: ='522 11 00'!I14 -> 254.6 | K24: 0 | L24: =M24+N24+O24+P24 -> 22346.4 | M24: 0 | N24: ='522 11 00'!L14 -> 22123.1 | O24: ='522 11 00'!M14 -> 223.3 | P24: 0 | Q24: =R24+S24+T24+U24 -> 22346.4 | R24: 0 | S24: =N24 -> 22123.1 | T24: =O24 -> 223.3 | U24: 0 | V24: 92.92999303 | W24: 100
A25: Прочие расходы | B25: 522 10 00 | C25: 024 | D25: 04 | E25: 12 | F25: 013 | G25: =SUM(I25+J25) -> 175 | I25: ='522 11 00'!H18 -> 175 | L25: =SUM(N25+O25) -> 50 | N25: ='522 11 00'!L18 -> 50 | Q25: =SUM(S25+T25) -> 50 | S25: =N25 -> 50 | V25: 28.57142857 | W25: 100
A26: Региональная программа «Развитие малого и среднего предпринимательства на территории Ненецкого автономного округа на 2013 год» | B26: 522 12 00 | G26: =H26+I26+J26+K26 -> 9380 | H26: =H32 -> 4690 | I26: =I27 -> 4690 | J26: =J27 -> 0 | K26: =K27 -> 0 | L26: =M26+N26+O26+P26 -> 9364.8 | M26: =M32 -> 4674.8 | N26: =N27 -> 4690 | O26: =O27 -> 0 | P26: =P27 -> 0 | Q26: =R26+S26+T26+U26 -> 9380 | R26: =R32 -> 4690 | S26: =S27 -> 4690 | T26: =T27 -> 0 | U26: =U27 -> 0 | V26: =L26/G26*100 -> 99.83795309 | W26: =Q26/L26*100 -> 100.1623099
A27: Управление экономического развития Ненецкого автономного округа | B27: 522 12 00 | C27: 9 | G27: =G28 -> 4690 | H27: =H28 -> 4690 | I27: 4690 | J27: 0 | K27: 0 | L27: =L28 -> 9364.8 | M27: 4674.8 | N27: 4690 | O27: 0 | P27: 0 | Q27: =Q28 -> 9380 | R27: 4690 | S27: 4690 | T27: 0 | U27: 0
A28: Национальная экономика | B28: 522 12 00 | C28: 9 | D28: 4 | G28: =G29 -> 4690 | H28: =H32 -> 4690 | I28: 4690 | J28: 0 | K28: 0 | L28: =L29+L32 -> 9364.8 | M28: 4674.8 | N28: 4690 | O28: 0 | P28: 0 | Q28: 9380 | R28: 4690 | S28: 4690 | T28: 0 | U28: 0
A29: Другие вопросы в области национальной экономики | B29: 522 12 00 | C29: 9 | D29: 4 | E29: 12 | G29: =H29+I29+J29+K29 -> 4690 | H29: 0 | I29: =I30+I31 -> 4690 | J29: 0 | K29: 0 | L29: =M29+N29+O29+P29 -> 4690 | M29: 0 | N29: =N30+N31 -> 4690 | O29: 0 | P29: 0 | Q29: =R29+S29+T29+U29 -> 4690 | R29: 0 | S29: =S30+S31 -> 4690 | T29: 0 | U29: 0 | V29: =N29/I29*100 -> 100 | W29: =S29/N29*100 -> 100
A30: Субсидии юридическим лицам | B30: 522 12 00 | C30: 9 | D30: 4 | E30: 12 | F30: 6 | G30: =H30+I30+J30+K30 -> 3940 | H30: 0 | I30: ='522 12 00'!I12 -> 3940 | J30: 0 | K30: 0 | L30: 3940 | M30: 0 | N30: ='522 12 00'!L12 -> 3940 | O30: 0 | P30: 0 | Q30: 3940 | R30: 0 | S30: =N30 -> 3940 | T30: 0 | U30: 0
A31: Прочие расходы | B31: 522 12 00 | C31: 9 | D31: 4 | E31: 12 | F31: 013 | G31: =H31+I31+J31+K31 -> 750 | H31: 0 | I31: ='522 12 00'!I14 -> 750 | J31: 0 | K31: 0 | L31: 750 | M31: 0 | N31: ='522 12 00'!L14 -> 750 | O31: 0 | P31: 0 | Q31: 750 | R31: 0 | S31: =N31 -> 750 | T31: 0 | U31: 0
A32: Субсидии на государственную поддержку малого и среднего предпринимательства, включая крестьянские (фермерские) хозяйства | B32: 345 01 00 | C32: 9 | D32: 4 | E32: 12 | G32: =H32+I32+J32+K32 -> 4690 | H32: =H33+H34 -> 4690 | I32: =I33 -> 0 | J32: =J33 -> 0 | K32: =K33 -> 0 | L32: 4674.8 | M32: =M33+M34 -> 4674.8 | N32: 0 | O32: =O33 -> 0 | P32: 0 | Q32: 4690 | R32: =R33+R34 -> 4690 | S32: 0 | T32: =T33 -> 0 | U32: 0 | V32: =M32/H32*100 -> 99.67590618 | W32: =R32/M32*100 -> 100.3251476
A33: Субсидии юридическим лицам | B33: 345 01 00 | C33: 9 | D33: 4 | E33: 12 | F33: 6 | G33: =G34 -> 750 | H33: ='522 12 00'!H12 -> 3940 | I33: 0 | J33: =J34 -> 0 | K33: =K34 -> 0 | L33: 3940 | M33: ='522 12 00'!K12 -> 3940 | N33: 0 | O33: =O34 -> 0 | P33: =P34 -> 0 | Q33: 3940 | R33: ='522 12 00'!O12 -> 3940 | S33: 0 | T33: =T34 -> 0 | U33: =U34 -> 0
A34: Прочие расходы | B34: 345 01 00 | C34: 9 | D34: 4 | E34: 12 | F34: 013 | G34: =H34+I34+J34+K34 -> 750 | H34: ='522 12 00'!H14 -> 750 | I34: 0 | J34: 0 | K34: 0 | L34: 734.8 | M34: ='522 12 00'!K14 -> 734.8 | N34: 0 | O34: 0 | P34: 0 | Q34: 750 | R34: ='522 12 00'!O14 -> 750 | S34: 0 | T34: 0 | U34: 0
A35: Региональная адресная программа "Проведение капитального ремонта многоквартирных домов в Ненецком автономном округе в 2013 году" | G35: =G36 -> 49972.8 | H35: 15477.1 | I35: 26999.8 | J35: 0 | K35: 7495.9 | L35: 48139.2 | M35: 14908.4 | N35: 26009 | O35: 0 | P35: 7221.8 | Q35: 44789.5 | R35: 13871.8 | S35: 24199.3 | T35: 0 | U35: 6718.4 | V35: =N35/I35*100 -> 96.33034319 | W35: =S35/N35*100 -> 93.04202391
A36: Управление строительства и жилищно-коммунального хозяйства Ненецкого автономного округа | B36: 098 00 00 | C36: 020 | G36: 49972.8 | H36: 15477.1 | I36: 26999.8 | J36: 0 | K36: 7495.9 | L36: 48139.2 | M36: 14908.4 | N36: 26009 | O36: 0 | P36: 7221.8 | Q36: 44789.5 | R36: 13871.8 | S36: 24199.3 | T36: 0 | U36: 6718.4
A37: Жилищно-коммунальное хозяйство | B37: 098 00 00 | C37: 020 | D37: 05 | G37: 49972.8 | H37: 15477.1 | I37: 26999.8 | J37: 0 | K37: 7495.9 | L37: 48139.2 | M37: 14908.4 | N37: 26009 | O37: 0 | P37: 7221.8 | Q37: 44789.5 | R37: 13871.8 | S37: 24199.3 | T37: 0 | U37: 6718.4
A38: Коммунальное хозяйство | B38: 098 00 00 | C38: 020 | D38: 05 | E38: 02 | G38: 49972.8 | H38: 15477.1 | I38: 26999.8 | J38: 0 | K38: 7495.9 | L38: 48139.2 | M38: 14908.4 | N38: 26009 | O38: 0 | P38: 7221.8 | Q38: 44789.5 | R38: 13871.8 | S38: 24199.3 | T38: 0 | U38: 6718.4
A39: Обеспечение мероприятий по капитальному ремонту многоквартирных домов и переселению граждан из аварийного жилищного фонда | B39: 098 00 00 | C39: 020 | D39: 05 | E39: 02 | G39: =H39+I39+J39+K39 -> 49972.8 | H39: =H40+H43 -> 15477.1 | I39: =I40+I43 -> 26999.8 | J39: 0 | K39: 7495.9 | L39: =M39+N39+O39+P39 -> 48139.2 | M39: 14908.4 | N39: 26009 | O39: 0 | P39: 7221.8 | Q39: =R39+S39+T39+U39 -> 44789.5 | R39: 13871.8 | S39: 24199.3 | T39: 0 | U39: 6718.4
A40: Обеспечение мероприятий по капитальному ремонту многоквартирных домов и переселению граждан из аварийного жилищного фонда за счёт средств, поступивших от государственной корпорации "Фонд содействия реформированию жилищно-коммунального хозяйства" | B40: 098 01 00 | C40: 020 | D40: 05 | E40: 02 | G40: =G41 -> 15477.1 | H40: 15477.1 | I40: 0 | J40: 0 | K40: 0 | L40: 14908.4 | M40: 14908.4 | N40: 0 | O40: 0 | P40: 0 | Q40: 13871.8 | R40: 13871.8 | S40: 0 | T40: 0 | U40: 0
A41: Субсидии для обеспечения финансирования мероприятий по проведению капитального ремонта многоквартирных домов в муниципальных образованиях Ненецкого автономного округа за счёт средств государственной корпорации "Фонд содействия реформированию жилищно-коммунального хозяйства" | B41: 098 01 01 | C41: 020 | D41: 05 | E41: 02 | G41: =H41+I41+J41+K41 -> 15477.1 | H41: =H42 -> 15477.1 | I41: ='098 02 01'!H14 -> 0 | J41: 0 | K41: ='098 02 01'!J14 -> 0 | L41: =M41+N41+O41+P41 -> 14908.4 | M41: =M42 -> 14908.4 | N41: ='098 02 01'!M14 -> 0 | O41: 0 | P41: ='098 02 01'!O14 -> 0 | Q41: =R41+S41+T41+U41 -> 13871.8 | R41: =R42 -> 13871.8 | S41: =S42 -> 0 | T41: 0 | U41: =U42 -> 0
A42: Фонд софинансирования | B42: 098 01 01 | C42: 020 | D42: 05 | E42: 02 | F42: 010 | H42: ='098 02 01'!I14 -> 15477.1 | I42: 0 | J42: 0 | K42: 0 | M42: ='098 02 01'!N13 -> 14908.4 | N42: 0 | O42: 0 | P42: 0 | R42: 13871.8 | S42: 0 | T42: 0 | U42: 0
A43: Обеспечение мероприятий по капитальному ремонту многоквартирных домов и переселению граждан из аварийного жилищного фонда за счёт средств окружного бюджета | B43: 098 02 00 | C43: 020 | D43: 05 | E43: 02 | G43: =G44 -> 34495.7 | H43: =H44 -> 0 | I43: 26999.8 | J43: 0 | K43: 7495.9 | L43: 33230.8 | M43: 0 | N43: 26009 | O43: 0 | P43: 7221.8 | Q43: 30917.7 | R43: 0 | S43: 24199.3 | T43: 0 | U43: 6718.4 | V43: =N43/I43*100 -> 96.33034319 | W43: =S43/N43*100 -> 93.04202391
A44: Субсидии для обеспечения софинансирования мероприятий по проведению капитального ремонта многоквартирных домов в муниципальных образованиях Ненецкого автономного округа за счёт средств окружного бюджета | B44: 098 02 01 | C44: 020 | D44: 05 | E44: 02 | G44: =H44+I44+J44+K44 -> 34495.7 | H44: 0 | I44: ='098 02 01'!H17 -> 26999.8 | J44: 0 | K44: ='098 02 01'!J17 -> 7495.9 | L44: =M44+N44+O44+P44 -> 33230.8 | M44: 0 | N44: ='098 02 01'!M17 -> 26009 | O44: 0 | P44: ='098 02 01'!O17 -> 7221.8 | Q44: =R44+S44+T44+U44 -> 30917.7 | R44: =R45 -> 0 | S44: 24199.3 | T44: 0 | U44: 6718.4
A45: Фонд софинансирования | B45: 098 02 01 | C45: 020 | D45: 05 | E45: 02 | F45: 010 | H45: 0 | I45: ='098 02 01'!H18 -> 26999.8 | J45: 0 | K45: ='098 02 01'!J18 -> 7495.9 | M45: 0 | N45: ='098 02 01'!M18 -> 26009 | O45: =0 -> 0 | P45: ='098 02 01'!O18 -> 7221.8 | R45: 0 | S45: 24199.3 | T45: 0 | U45: 6718.4

Sheet 098 02 01
G1: Реализация региональной адресной программы
G2: "Проведение капитального ремонта многоквартирных домов в Ненецком автономном округе в 2013 году"
G3: за 2013 год
O4: (тыс. рублей)
B5: Целевая статья | C5: Глава | D5: Раздел | E5: Подраздел | F5: Вид расходов | G5: План на год | K5: Утверждено ОБ на 2013 год | L5: Исполнено | P5: Освоено | T5: % исполнения | U5: % освоения
G6: Всего на год | H6: в том числе: | L6: Всего на год | M6: в том числе: | P6: Всего на год | Q6: в том числе:
H7: Бюджет субъекта РФ | I7: Бюджет РФ | J7: ВБИ | M7: Бюджет субъекта РФ | N7: Бюджет РФ | O7: ВБИ | Q7: Бюджет субъекта РФ | R7: Бюджет РФ | S7: ВБИ
A8: Всего по Программе | G8: =G9 -> 49972.8 | H8: =H9 -> 26999.8 | I8: 15477.1 | J8: 7495.9 | K8: =K9 -> 42476.9 | L8: 48139.2 | M8: 26009 | N8: 14908.4 | O8: 7221.8 | P8: 44789.6 | Q8: 24199.4 | R8: 13871.8 | S8: 6718.4 | T8: =L8/G8*100 -> 96.33080396 | U8: =P8/L8*100 -> 93.04184532
A9: Управление строительства и жилищно-коммунального хозяйства Ненецкого автономного округа | B9: 098 00 00 | C9: 020 | G9: =G10 -> 49972.8 | H9: 26999.8 | I9: 15477.1 | J9: 7495.9 | K9: =K10 -> 42476.9 | L9: 48139.2 | M9: 26009 | N9: 14908.4 | O9: 7221.8 | P9: 44789.6 | Q9: 24199.4 | R9: 13871.8 | S9: 6718.4 | T9: =L9/G9*100 -> 96.33080396 | U9: =P9/L9*100 -> 93.04184532
A10: Жилищно-коммунальное хозяйство | B10: 098 00 00 | C10: 020 | D10: 05 | G10: =G11 -> 49972.8 | H10: =H11 -> 26999.8 | I10: 15477.1 | J10: 7495.9 | K10: =K11 -> 42476.9 | L10: =L11 -> 48139.2 | M10: =M11 -> 26009 | N10: 14908.4 | O10: 7221.8 | P10: =P11 -> 44789.6 | Q10: =Q11 -> 24199.4 | R10: 13871.8 | S10: 6718.4 | T10: =L10/G10*100 -> 96.33080396 | U10: =P10/L10*100 -> 93.04184532
A11: Коммунальное хозяйство | B11: 098 00 00 | C11: 020 | D11: 05 | E11: 02 | G11: =G12 -> 49972.8 | H11: =H12 -> 26999.8 | I11: 15477.1 | J11: 7495.9 | K11: =K12 -> 42476.9 | L11: 48139.2 | M11: 26009 | N11: 14908.4 | O11: 7221.8 | P11: 44789.6 | Q11: 24199.4 | R11: 13871.8 | S11: 6718.4 | T11: =L11/G11*100 -> 96.33080396 | U11: =P11/L11*100 -> 93.04184532
A12: Обеспечение мероприятий по капитальному ремонту многоквартирных домов и переселению граждан из аварийного жилищного фонда | B12: 098 00 00 | C12: 020 | D12: 05 | E12: 02 | G12: =H12+I12+J12 -> 49972.8 | H12: =H14+H18 -> 26999.8 | I12: =I14 -> 15477.1 | J12: =J18 -> 7495.9 | K12: =K14+K18 -> 42476.9 | L12: =L14+L18 -> 48139.2 | M12: =M14+M18 -> 26009 | N12: =N14 -> 14908.4 | O12: =O18 -> 7221.8 | P12: =P14+P18 -> 44789.6 | Q12: =Q14+Q18 -> 24199.4 | R12: =R14 -> 13871.8 | S12: =S18 -> 6718.4 | T12: =L12/G12*100 -> 96.33080396 | U12: =P12/L12*100 -> 93.04184532
A13: Субсидии для обеспечения финансирования мероприятий по проведению капитального ремонта многоквартирных домов в муниципальных образованиях Ненецкого автономного округа за счёт средств государственной корпорации "Фонд содействия реформированию жилищно-коммунального хозяйства" | B13: 098 01 01 | C13: 020 | D13: 05 | E13: 02 | G13: =G14 -> 0 | H13: =H14 -> 0 | I13: =I14 -> 15477.1 | J13: =J14 -> 0 | K13: 15477.1 | L13: =L14 -> 14908.4 | M13: 0 | N13: 14908.4 | O13: 0 | P13: 13871.8 | Q13: 0 | R13: 13871.8 | S13: 0 | T13: =N13/I13*100 -> 96.32553902 | U13: =R13/N13*100 -> 93.0468729
A14: Фонд софинансирования | B14: 098 01 01 | C14: 020 | D14: 05 | E14: 02 | F14: 010 | G14: =H14+J14 -> 0 | H14: 0 | I14: =I15+I16+I18 -> 15477.1 | J14: 0 | K14: =I14 -> 15477.1 | L14: =N14 -> 14908.4 | M14: 0 | N14: =N15+N16+N18 -> 14908.4 | O14: 0 | P14: =R14 -> 13871.8 | Q14: 0 | R14: =R15+R16+R18 -> 13871.8 | S14: 0 | T14: =N14/I14*100 -> 96.32553902 | U14: =R14/N14*100 -> 93.0468729
A15: "Городской округ "Город Нарьян-Мар" | G15: 0 | H15: 0 | I15: 9430.7 | J15: 0 | L15: =M15+O15 -> 0 | M15: 0 | N15: 8862 | O15: 0 | P15: =Q15+S15 -> 0 | Q15: 0 | R15: 8379.1 | S15: 0 | T15: =N15/I15*100 -> 93.96969472 | U15: =R15/N15*100 -> 94.55089145
A16: "Городское поселение "Рабочий посёлок Искателей" | G16: 0 | H16: 0 | I16: 6046.4 | J16: 0 | L16: =M16+O16 -> 0 | M16: 0 | N16: =I16 -> 6046.4 | O16: 0 | P16: =Q16+S16 -> 0 | Q16: 0 | R16: 5492.7 | S16: 0 | T16: =N16/I16*100 -> 100 | U16: =R16/N16*100 -> 90.84248478
A17: Субсидии для обеспечения софинансирования мероприятий по проведению капитального ремонта многоквартирных домов в муниципальных образованиях Ненецкого автономного округа за счёт средств окружного бюджета | B17: 098 02 01 | C17: 020 | D17: 05 | E17: 02 | G17: =G18 -> 34495.7 | H17: =H18 -> 26999.8 | I17: =I18 -> 0 | J17: =J18 -> 7495.9 | K17: 26999.8 | L17: =L18 -> 33230.8 | M17: 26009 | N17: 0 | O17: 7221.8 | P17: 30917.8 | Q17: 24199.4 | R17: 0 | S17: 6718.4 | T17: =M17/H17*100 -> 96.33034319 | U17: =Q17/M17*100 -> 93.0424084
A18: Фонд софинансирования | B18: 098 02 01 | C18: 020 | D18: 05 | E18: 02 | F18: 010 | G18: 34495.7 | H18: =H19+H20+H21 -> 26999.8 | I18: =I19+I20+I21 -> 0 | J18: =J19+J20+J21 -> 7495.9 | K18: =H18 -> 26999.8 | L18: =M18+O18 -> 33230.8 | M18: =M19+M20 -> 26009 | N18: =N19+N20+N21 -> 0 | O18: =O19+O20 -> 7221.8 | P18: =Q18+S18 -> 30917.8 | Q18: =Q19+Q20 -> 24199.4 | R18: =R19+R20+R21 -> 0 | S18: =S19+S20 -> 6718.4 | T18: =M18/H18*100 -> 96.33034319 | U18: =Q18/M18*100 -> 93.0424084
A19: "Городской округ "Город Нарьян-Мар" | G19: 21019.4 | H19: 16451.9 | I19: =I20+I21+I22 -> 0 | J19: 4567.5 | K19: =K20+K21+K22 -> 0 | L19: =M19+O19 -> 19754.5 | M19: 15461.1 | N19: =N20+N21+N22 -> 0 | O19: 4293.4 | P19: =Q19+S19 -> 18675.6 | Q19: 14617.4 | R19: =R20+R21+R22 -> 0 | S19: 4058.2 | T19: =M19/H19*100 -> 93.97759529 | U19: =Q19/M19*100 -> 94.54307908
A20: "Городское поселение "Рабочий посёлок Искателей" | G20: 13476.3 | H20: 10547.9 | I20: =I21+I22+I23 -> 0 | J20: 2928.4 | K20: =K21+K22+K23 -> 0 | L20: =M20+O20 -> 13476.3 | M20: =H20 -> 10547.9 | N20: =N21+N22+N23 -> 0 | O20: =J20 -> 2928.4 | P20: =Q20+S20 -> 12242.2 | Q20: 9582 | R20: =R21+R22+R23 -> 0 | S20: 2660.2 | T20: =M20/H20*100 -> 100 | U20: =Q20/M20*100 -> 90.84272699

Sheet 522 10 00
A1: Реализация экономически значимой региональной программы развития традиционной для Ненецкого автономного округа подотрасли сельского хозяйства
A2: "Развитие северного оленеводства в Ненецком автономном округе на 2013 - 2017 годы"
A3: за 2013 год
B4: Глава | C4: Раздел | D4: Подраздел | E4: Целевая статья | F4: Вид расходов | G4: План на год | K4: Утверждено ОБ на 2013 год | L4: Исполнено | P4: Освоено | T4: % финанс-я ОБ | U4: % освоения
G5: Всего на год | H5: в том числе: | L5: Всего на год | M5: в том числе: | P5: Всего на год | Q5: в том числе:
H6: Бюджет субъекта РФ | I6: Бюджет МО | J6: Внебюджетные | M6: Бюджет субъекта РФ | N6: Бюджет МО | O6: Внебюджетные | Q6: Бюджет субъекта РФ | R6: Бюджет МО | S6: Внебюджетные
A7: Всего по Программе | E7: 522 10 00 | G7: =H7+I7+J7 -> 180459.7 | H7: =H8+H16 -> 155967 | I7: =I8+I16 -> 0 | J7: =J8+J16 -> 24492.7 | K7: =K8+K16 -> 155967 | L7: =M7+N7+O7 -> 128526.5 | M7: =M8+M16 -> 128260.3 | N7: =N8+N16 -> 0 | O7: =O8+O16 -> 266.2 | P7: =Q7+R7+S7 -> 27289.7 | Q7: =Q8+Q16 -> 27023.5 | R7: =R8+R16 -> 0 | S7: =S8+S16 -> 266.2 | T7: =M7/K7*100 -> 82.235537 | U7: =Q7/M7*100 -> 21.06926305
A8: Управление государственного имущества Ненецкого автономного округа | B8: 005 | G8: =SUM(G9) -> 132917 | H8: =SUM(H9) -> 108886.8 | I8: =I9 -> 0 | J8: =J9 -> 24030.2 | K8: =SUM(K9) -> 108886.8 | L8: 101236.8 | M8: 101236.8 | N8: =N9 -> 0 | O8: =O9 -> 0 | P8: =SUM(P9) -> 0 | Q8: =SUM(Q9) -> 0 | R8: =R9 -> 0 | S8: =S9 -> 0 | T8: =M8/K8*100 -> 92.97435502 | U8: =Q8/M8*100 -> 0
A9: Национальная экономика | B9: 005 | C9: 04 | G9: =SUM(G10) -> 132917 | H9: =SUM(H10) -> 108886.8 | I9: =I10 -> 0 | J9: =J10 -> 24030.2 | K9: 108886.8 | L9: 101236.8 | M9: 101236.8 | N9: =N10 -> 0 | O9: =O10 -> 0 | P9: =SUM(P10) -> 0 | Q9: =SUM(Q10) -> 0 | R9: =R10 -> 0 | S9: =S10 -> 0
A10: Другие вопросы в области национальной экономики | B10: 005 | C10: 04 | D10: 12 | G10: =H10+I10+J10 -> 132917 | H10: =SUM(H13+H15) -> 108886.8 | I10: =I13 -> 0 | J10: =J13 -> 24030.2 | K10: =SUM(K13+K15) -> 108886.8 | L10: =M10+N10+O10 -> 101236.8 | M10: =SUM(M13) -> 101236.8 | N10: =N13 -> 0 | O10: =O13 -> 0 | P10: =Q10+R10+S10 -> 0 | Q10: =SUM(Q13) -> 0 | R10: =R13 -> 0 | S10: =S13 -> 0 | T10: =M10/K10*100 -> 92.97435502 | U10: =Q10/M10*100 -> 0
A11: Региональные целевые программы | B11: 005 | C11: 04 | D11: 12 | E11: 522 00 00
A12: ЭЗРП развития традиционной для НАО подотрасли сельского хозяйства "Развитие северного оленеводства в Ненецком автономном округе на 2013-2017 годы" | B12: 005 | C12: 04 | D12: 12 | E12: 522 10 00
A13: Бюджетные инвестиции | B13: 005 | C13: 04 | D13: 12 | E13: 522 10 00 | F13: 003 | G13: =H13+I13+J13 -> 125267 | H13: =H14 -> 101236.8 | I13: =I14 -> 0 | J13: =J14 -> 24030.2 | K13: 101236.8 | L13: =M13+N13+O13 -> 101236.8 | M13: 101236.8 | N13: =N14 -> 0 | O13: =O14 -> 0 | P13: =Q13+R13+S13 -> 0 | Q13: =Q14 -> 0 | R13: =R14 -> 0 | S13: =S14 -> 0 | T13: =M13/K13*100 -> 100 | U13: =Q13/M13*100 -> 0
A14: 1. Предоставление бюджетных инвестиций ОАО "Мясопродукты" на приоретение, поставку и монтаж технологических комплексов по убою и первичной переработке оленей с морозильными ёмкостями в местах убоя оленей в населённых пунктах НАО: район причала Варандейского терминала, п. Индига | H14: 101236.8 | I14: 0 | J14: 24030.2 | K14: =H14 -> 101236.8 | M14: =K14 -> 101236.8 | N14: 0 | O14: 0 | Q14: 0 | R14: 0 | S14: 0 | T14: =M14/K14*100 -> 100 | U14: =Q14/M14*100 -> 0
A15: 2. Бюджетные инвестиции ОАО "Мясопродукты" для взноса в уставный капитал ООО "Заполярный олень" | B15: 005 | C15: 04 | D15: 12 | E15: 522 10 00 | F15: 456 | H15: 7650 | K15: 7650 | M15: 0 | Q15: 0 | T15: =M15/K15*100 -> 0 | U15: 0
A16: Управление агропромышленного комплекса и торговли Ненецкого автономного округа | B16: 024 | G16: =G19 -> 47542.7 | H16: 47080.2 | I16: 0 | J16: 462.5 | K16: 47080.2 | L16: 27289.7 | M16: 27023.5 | N16: 0 | O16: 266.2 | P16: 27289.7 | Q16: 27023.5 | R16: 0 | S16: 266.2 | T16: =M16/K16*100 -> 57.39886407 | U16: =Q16/M16*100 -> 100
A17: Национальная экономика | B17: 024 | C17: 04
A18: Сельское хозяйство и рыболовство | B18: 024 | C18: 04 | D18: 05
A19: Региональные целевые программы | B19: 024 | C19: 04 | D19: 05 | E19: 522 00 00 | G19: =G20 -> 47542.7 | H19: 47080.2 | I19: 0 | J19: 462.5 | K19: 47080.2 | L19: 27289.7 | M19: 27023.5 | N19: 0 | O19: 266.2 | P19: 27289.7 | Q19: 27023.5 | R19: 0 | S19: 266.2
A20: ЭЗРП развития традиционной для НАО подотрасли сельского хозяйства "Развитие северного оленеводства в Ненецком автономном округе на 2013-2017 годы" | B20: 024 | C20: 04 | D20: 05 | E20: 522 10 00 | G20: =H20+I20+J20 -> 47542.7 | H20: =H21+H27 -> 47080.2 | I20: =I21+I27 -> 0 | J20: =J21+J27 -> 462.5 | K20: =K21+K27 -> 47080.2 | L20: =M20+N20+O20 -> 27289.7 | M20: =M21+M27 -> 27023.5 | N20: =N21+N27 -> 0 | O20: =O21+O27 -> 266.2 | P20: =Q20+R20+S20 -> 27289.7 | Q20: =Q21+Q27 -> 27023.5 | R20: =R21+R27 -> 0 | S20: =S21+S27 -> 266.2
A21: Субсидии юридическим лицам | B21: 024 | C21: 04 | D21: 05 | E21: 522 10 00 | F21: 006 | G21: =H21+I21+J21 -> 46253.1 | H21: =H22+H23+H24+H25+H26 -> 45790.6 | I21: =I22+I23+I24+I25+I26 -> 0 | J21: =J22+J23+J24+J25+J26 -> 462.5 | K21: =K22+K23+K24+K25+K26 -> 45790.6 | L21: =M21+N21+O21 -> 26620.7 | M21: =M22+M23+M24+M25+M26 -> 26354.5 | N21: =N22+N23+N24+N25+N26 -> 0 | O21: =O22+O23+O24+O25+O26 -> 266.2 | P21: =Q21+R21+S21 -> 26620.7 | Q21: =Q22+Q23+Q24+Q25+Q26 -> 26354.5 | R21: =R22+R23+R24+R25+R26 -> 0 | S21: =S22+S23+S24+S25+S26 -> 266.2 | T21: =M21/K21*100 -> 57.55438889 | U21: =Q21/M21*100 -> 100
A22: 3. Предоставление субсидий сельхозтоваропроизводителям в целях возмещения затрат в связи с производством сельскохозяйственной продукции оленеводства в части расходов на проведение геоботанического обследования оленьих пастбищ и разработку проектов внутрихозяйственного землеустройства территории оленьих пастбищ | H22: =1004.7+11538.3 -> 12543 | I22: 0 | J22: 126.7 | K22: =H22 -> 12543 | M22: =1004.7+11538.3 -> 12543 | N22: 0 | O22: 126.7 | Q22: 12543 | R22: 0 | S22: 126.7
A23: 4. Предоставление субсидий сельхозтоваропроизводителям в целях возмещения затрат в связи с производством сельскохозяйственной продукции оленеводства в части расходов на проведение просчётов поголовья оленей | H23: 12553.9 | I23: 0 | J23: 126.8 | K23: =H23 -> 12553.9 | M23: 4005.4 | N23: 0 | O23: 40.5 | Q23: 4005.4 | R23: 0 | S23: 40.5
A24: 5. Предоставление субсидий сельхозтоваропроизводителям в целях возмещения затрат в связи с производством сельскохозяйственной продукции оленеводства в части расходов на проведение зоотехнических мероприятий в оленеводстве и охраны оленьих стад от хищников | H24: =9556.5 -> 9556.5 | I24: 0 | J24: 96.5 | K24: =H24 -> 9556.5 | M24: 5863.3 | N24: 0 | O24: 59.2 | Q24: 5863.3 | R24: 0 | S24: 59.2
A25: 6. Предоставление субсидий на возмещение части расходов с/х товаропроизводителям при подготовке специалистов по заочной форме обучения для оленеводческих хозяйств | H25: 446.1 | I25: 0 | J25: 4.5 | K25: =H25 -> 446.1 | M25: 0 | N25: 0 | O25: 0 | Q25: 0 | R25: 0 | S25: 0
A26: 2. Предоставление субсидий сельхозтоваропроизводителям в целях возмещения затрат в связи с производством сельскохозяйственной продукции оленеводства в части расходов на приобретение и поставку техники и оборудования, используемых в оленеводстве | H26: =10691.1 -> 10691.1 | I26: 0 | J26: 108 | K26: =H26 -> 10691.1 | M26: 3942.8 | N26: 0 | O26: 39.8 | Q26: 3942.8 | R26: 0 | S26: 39.8
A27: Прочие расходы | B27: 024 | C27: 04 | D27: 12 | E27: 522 10 00 | F27: 013 | G27: =H27+I27+J27 -> 1289.6 | H27: =SUM(H28+H29) -> 1289.6 | I27: =I28+I29 -> 0 | J27: =J28+J29 -> 0 | K27: =SUM(K28+K29) -> 1289.6 | L27: =M27+N27+O27 -> 669 | M27: =M28+M29 -> 669 | N27: =N28+N29 -> 0 | O27: =O28+O29 -> 0 | P27: =Q27+R27+S27 -> 669 | Q27: =SUM(Q28+Q29) -> 669 | R27: =SUM(R28+R29) -> 0 | S27: =SUM(S28+S29) -> 0
A28: 7. Проведение курсов повышения квалификации, семинаров, совещаний по вопросам развития оленеводства | H28: 927.9 | I28: 0 | J28: 0 | K28: =H28 -> 927.9 | M28: =94.6+574.4 -> 669 | N28: 0 | O28: 0 | Q28: 669 | R28: 0 | S28: 0
A29: 8. Проведение научных исследований в оленеводстве | H29: 361.7 | I29: 0 | J29: 0 | K29: =H29 -> 361.7 | M29: 0 | N29: 0 | O29: 0 | Q29: 0 | R29: 0 | S29: 0

Sheet 522 11 00
G1: Реализация окружной программы
G2: "Развитие торговли на территории Ненецкого автономного округа на 2013 - 2015 годы"
G3: за 2013 год
P4: (тыс. рублей)
B5: Глава | C5: Раздел | D5: Подраздел | E5: Целевая статья | F5: Вид расходов | G5: План на год | J5: Утверждено ОБ на 2013 год | K5: Исполнено | N5: Освоено | Q5: % финанс-я ОБ | R5: % освоения
G6: Всего на год | H6: в том числе: | K6: Всего на год | L6: в том числе: | N6: Всего на год | O6: в том числе:
H7: Бюджет субъекта РФ | I7: Бюджет МО | L7: Бюджет субъекта РФ | M7: Бюджет МО | O7: Бюджет субъекта РФ | P7: Бюджет МО
A8: Всего по Программе | E8: 522 11 00 | G8: =G9 -> 24235.8 | H8: =H9 -> 23981.2 | I8: 254.6 | J8: 23981.2 | K8: 22396.4 | L8: 22173.1 | M8: 223.3 | N8: 22396.4 | O8: 22173.1 | P8: 223.3 | Q8: =L8/J8*100 -> 92.46034394 | R8: =O8/L8*100 -> 100
A9: Управление агропромышленного комплекса и торговли Ненецкого автономного округа | B9: 024 | G9: =G10 -> 24235.8 | H9: =H10 -> 23981.2 | I9: 254.6 | J9: 23981.2 | K9: 22396.4 | L9: 22173.1 | M9: 223.3 | N9: 22396.4 | O9: 22173.1 | P9: 223.3 | Q9: =L9/J9*100 -> 92.46034394 | R9: =O9/L9*100 -> 100
A10: Национальная экономика | B10: 024 | C10: 04 | G10: =G11 -> 24235.8 | H10: =H11 -> 23981.2 | I10: =I11 -> 254.6 | J10: 23981.2 | K10: 22396.4 | L10: 22173.1 | M10: 223.3 | N10: 22396.4 | O10: 22173.1 | P10: 223.3
A11: Другие вопросы в области национальной экономики | B11: 024 | C11: 04 | D11: 12 | G11: =G12 -> 24235.8 | H11: =H12 -> 23981.2 | I11: 254.6 | J11: 23981.2 | K11: 22396.4 | L11: 22173.1 | M11: 223.3 | N11: 22396.4 | O11: 22173.1 | P11: 223.3
A12: Региональные целевые программы | B12: 024 | C12: 04 | D12: 12 | E12: 522 00 00 | G12: =H12+I12 -> 24235.8 | H12: =H13 -> 23981.2 | I12: =I13 -> 254.6 | J12: =J13 -> 23981.2 | K12: =L12+M12 -> 22396.4 | L12: =L13 -> 22173.1 | M12: =M13 -> 223.3 | N12: =O12+P12 -> 22396.4 | O12: =O13 -> 22173.1 | P12: =P13 -> 223.3
A13: Окружная программа "Развитие торговли на территории Ненецкого автономного округа на 2013-2015 годы" | B13: 024 | C13: 04 | D13: 12 | E13: 522 11 00 | G13: =H13+I13 -> 24235.8 | H13: =H14+H18 -> 23981.2 | I13: =I14+I18 -> 254.6 | J13: =J14+J18 -> 23981.2 | K13: =L13+M13 -> 22396.4 | L13: =L14+L18 -> 22173.1 | M13: =M14+M18 -> 223.3 | N13: =O13+P13 -> 22396.4 | O13: =O14+O18 -> 22173.1 | P13: =P14+P18 -> 223.3 | Q13: =L13/J13*100 -> 92.46034394 | R13: =O13/L13*100 -> 100
A14: Фонд софинансирования | B14: 024 | C14: 04 | D14: 12 | E14: 522 11 00 | F14: 010 | G14: =H14+I14 -> 24060.8 | H14: =H15+H16+H17 -> 23806.2 | I14: =I15+I16+I17 -> 254.6 | J14: =J15+J16+J17 -> 23806.2 | K14: =L14+M14 -> 22346.4 | L14: =L15+L16+L17 -> 22123.1 | M14: =M15+M16+M17 -> 223.3 | N14: =O14+P14 -> 22346.4 | O14: =O15+O16+O17 -> 22123.1 | P14: =P15+P16+P17 -> 223.3 | Q14: =L14/J14*100 -> 92.92999303 | R14: =O14/L14*100 -> 100
A15: 1. Предоставление субсидий на возмещение части расходов на приобретение и поставку модульных зданий магазинов | H15: 3870 | I15: 39 | J15: 3870 | L15: 3869.9 | M15: 39 | O15: 3869.9 | P15: 39
A16: 2. Предоставление субсидий на возмещение расходов, связанных с доставкой лекарственных препаратов и изделий медицинского назначения, молочных смесей и каш, сухого молока в сельские населённые пункты | H16: 2862.5 | I16: 28.9 | J16: 2862.5 | L16: 1270.5 | M16: 12.8 | O16: 1270.5 | P16: 12.8
A17: 3. Предоставление субсидий на приобретение и поставку транспортных средств для субъектов торговли в сельские населённые пункты | H17: 17073.7 | I17: 186.7 | J17: 17073.7 | L17: 16982.7 | M17: 171.5 | O17: 16982.7 | P17: 171.5
A18: Прочие расходы | B18: 024 | C18: 04 | D18: 12 | E18: 522 11 00 | F18: 013 | G18: =SUM(H18+I18) -> 175 | H18: =H19 -> 175 | J18: =J19 -> 175 | K18: =L18+M18 -> 50 | L18: =L19 -> 50 | M18: =M19 -> 0 | N18: =SUM(O18+P18) -> 50 | O18: =O19 -> 50 | P18: =P19 -> 0 | Q18: =L18/J18*100 -> 28.57142857 | R18: 0
A19: 4.2. Проведение конкурса "Лучшее предприятие торговли", "Лучший работник торговой отрасли" | H19: 175 | I19: 0 | J19: 175 | L19: 50 | M19: 0 | O19: 50 | P19: 0

Sheet 522 12 00
H2: Реализация региональной программы
H3: "Развитие малого и среднего предпринимательства на территории Ненецкого автономного округа"
H4: за 2013 год
B5: Целевая статья | C5: Глава | D5: Раздел | E5: Подраздел | F5: Вид расходов | G5: План на год | J5: Исполнено | M5: Освоено | P5: % финанс-я ОБ | Q5: % освоения всего
G6: Всего на год | H6: в т.ч. | J6: Всего на год | K6: в т.ч. | M6: Всего на год | N6: в т.ч.
H7: ФБ | I7: Бюджет субъекта РФ | K7: ФБ | L7: Бюджет субъекта РФ | N7: ФБ | O7: Бюджет субъекта РФ
A8: Всего по Программе | B8: 522 12 00 | G8: =SUM(G9+G58+G65) -> 9380 | H8: =SUM(H9+H58+H65) -> 4690 | I8: =SUM(I9+I58+I65) -> 4690 | J8: =SUM(J9+J58) -> 9364.8 | K8: =SUM(K9+K58+K65) -> 4674.8 | L8: =SUM(L9+L58) -> 4690 | M8: =SUM(M9+M58) -> 9364.8 | N8: =SUM(N9+N58) -> 4674.8 | O8: =SUM(O9+O58) -> 4690 | P8: =J8/G8*100 -> 99.83795309 | Q8: =M8/J8*100 -> 100
A9: Управление экономического развития Ненецкого автономного округа | B9: 522 12 00 | C9: 009 | G9: =SUM(G10+G52) -> 9380 | H9: 4690 | I9: 4690 | J9: 9364.8 | K9: 4674.8 | L9: 4690 | M9: =SUM(M10) -> 9364.8 | N9: =SUM(N10) -> 4674.8 | O9: =SUM(O10+O52) -> 4690 | P9: =J9/G9*100 -> 99.83795309 | Q9: =M9/J9*100 -> 100
A10: Национальная экономика | B10: 522 12 00 | C10: 009 | D10: 04 | G10: =SUM(G11) -> 9380 | H10: 4690 | I10: 4690 | J10: 9364.8 | K10: 4674.8 | L10: 4690 | M10: =SUM(M11) -> 9364.8 | N10: =SUM(N11) -> 4674.8 | O10: =SUM(O11) -> 4690
A11: Другие вопросы в области национальной экономики | B11: 522 12 00 | C11: 009 | D11: 04 | E11: 12 | G11: =H11+I11 -> 9380 | H11: =H12+H14 -> 4690 | I11: =I12+I14 -> 4690 | J11: =K11+L11 -> 9364.8 | K11: =K12+K14 -> 4674.8 | L11: =L12+L14 -> 4690 | M11: =N11+O11 -> 9364.8 | N11: =N12+N14 -> 4674.8 | O11: =O12+O14 -> 4690
A12: Субсидии юридическим лицам | B12: 522 12 00 | C12: 009 | D12: 04 | E12: 12 | F12: 006 | G12: =H12+I12 -> 7880 | H12: =H13 -> 3940 | I12: =I13 -> 3940 | J12: =K12+L12 -> 7880 | K12: =K13 -> 3940 | L12: =L13 -> 3940 | M12: =N12+O12 -> 7880 | N12: =N13 -> 3940 | O12: =O13 -> 3940 | P12: =J12/G12*100 -> 100 | Q12: =M12/J12*100 -> 100
A13: Предоставление субсидии на возмещение части затрат для уплаты части авансового платежа при заключении договора лизинга | H13: 3940 | I13: 3940 | K13: 3940 | L13: 3940 | N13: 3940 | O13: 3940
A14: Прочие расходы | B14: 522 12 00 | C14: 009 | D14: 04 | E14: 12 | F14: 013 | G14: =H14+I14 -> 1500 | H14: =H15 -> 750 | I14: =I15 -> 750 | J14: =K14+L14 -> 1484.8 | K14: =K15 -> 734.8 | L14: =L15 -> 750 | M14: =N14+O14 -> 1484.8 | N14: =N15 -> 734.8 | O14: =O15 -> 750 | P14: =J14/G14*100 -> 98.98666667 | Q14: =M14/J14*100 -> 100
A15: Гранты начинающим предпринимателям на конкурсной основе на создание собственного бизнеса | H15: 750 | I15: 750 | K15: 734.8 | L15: 750 | N15: =K15 -> 734.8 | O15: 750
